[Event "Czech Extraliga 2023-24"]
[Site "Czech Republic"]
[Date "2024.02.10"]
[Round "7.4"]
[White "Cvek, Robert"]
[Black "Janik, Igor"]
[Result "1/2-1/2"]
[ECO "A30"]
[WhiteElo "2450"]
[BlackElo "2505"]
[Annotator "TA"]
[PlyCount "139"]
[EventDate "2023.10.14"]
[EventCountry "CZE"]
[SourceTitle "playchess.com"]
[Source "ChessBase"]
[SourceQuality "1"]
[TimeControl "40/5400+30:1800+30"]

{[%evp 43,139,0,0,-3,0,0,0,0,0,-3,-3,-5,-6,-4,0,0,0,0,0,0,0,0,0,0,0,0,0,0,0,0,0,0,0,0,0,0,0,0,0,0,0,0,0,0,0,0,0,0,0,0,0,0,0,0,0,0,0,0,0,0,0,0,0,0,0,0,0,0,0,0,0,0,0,0,0,0,0,-29,-31,-28,-28,-29,-28,-27,0,0,0,0,0,0,0,0,0,0,0,0,0,0]} 1. Nf3 {[%emt 0:00:06]} Nf6 {[%emt 0:00:07]} 2. c4 {[%emt 0:00:41]} c5 {[%emt 0:00:12]} 3. g3 {[%emt 0:01:05]} Nc6 {[%emt 0:00:18]} 4. Bg2 {[%emt 0:00:57]} d6 {[%emt 0:00:53]} 5. d4 {[%emt 0:03:30]} cxd4 {[%emt 0:02:30]} 6. Nxd4 {[%emt 0:00:13] A30: Symmetrical English: Double Fianchetto and Hedgehog.} Bd7 {[%emt 0:00:05]} 7. O-O {[%emt 0:01:20]} g6 {[%emt 0:00:08]} 8. b3 {[%emt 0:01:56]} Bg7 {[%emt 0:00:45]} 9. Bb2 {[%emt 0:00:15]} h5 {[%emt 0:00:08]} 10. Nc3 {[%emt 0:02:23]} Qc8 {[%emt 0:07:40]} 11. Nxc6 $146 {[%emt 0:04:11]} ({Predecessor:} 11. h4 Bh3 12. Rc1 O-O 13. Nd5 Re8 14. Nxc6 bxc6 15. Nxf6+ exf6 16. e3 Bxg2 17. Kxg2 {1-0 Sviridov,V (2562)-Makarian,R (2474) Titled Tuesday intern op 14th Sept blitz 2021 (6)}) 11... Bxc6 {[%emt 0:01:30]} 12. Nd5 {[%emt 0:02:48]} Bxd5 {[%emt 0:02:14]} 13. Bxd5 {[%emt 0:09:46]} h4 {[%emt 0:02:27]} 14. Bg2 {[%emt 0:00:33]} hxg3 {[%emt 0:02:47]} 15. hxg3 {[%emt 0:00:12]} Rb8 {[%emt 0:03:04]} 16. e3 {[%emt 0:08:01]} Kf8 {[%emt 0:04:10]} 17. Rc1 {[%emt 0:04:36]} b6 {[%emt 0:01:55]} 18. Bxf6 {[%emt 0:02:27]} Bxf6 {[%emt 0:00:27]} 19. Qf3 {[%emt 0:00:08]} Kg7 {[%emt 0:00:20]} 20. Rfd1 {[%emt 0:00:08]} Qa6 {[%emt 0:01:32]} 21. a4 {[%emt 0:03:05]} Rbc8 {[%emt 0:02:02]} 22. Rd5 {[%emt 0:04:58]} Rc5 {[%emt 0:00:22]} 23. Qd1 {[%emt 0:02:24]} Qa5 {[%emt 0:03:02]} 24. Qe1 {[%emt 0:00:26]} Rxd5 {[%emt 0:00:49]} 25. Bxd5 {[%emt 0:00:12]} Qc5 {[%emt 0:02:17]} 26. b4 {[%emt 0:03:52]} Qc7 {[%emt 0:03:06]} 27. b5 {[%emt 0:00:17]} Qc5 {[%emt 0:00:33]} 28. Qd1 {[%emt 0:11:18]} Qa3 {[%emt 0:02:52]} 29. Rb1 {[%emt 0:01:19]} Rc8 {[%emt 0:00:17]} 30. Bc6 {[%emt 0:00:53]} Qc3 {[%emt 0:05:22]} 31. Qb3 {[%emt 0:00:38]} Qe5 {[%emt 0:00:58]} 32. Kg2 {[%emt 0:01:48]} a5 {[%emt 0:02:07]} 33. Rh1 {[%emt 0:01:15]} Qc5 {[%emt 0:02:13]} 34. Rd1 {[%emt 0:01:22]} Qh5 {[%emt 0:01:21]} 35. Rh1 {[%emt 0:03:11]} Qe2 {[%emt 0:01:50]} 36. Rh3 {[%emt 0:02:22]} Qd2 {[%emt 0:02:43]} 37. Rh1 {[%emt 0:00:18]} Qb4 {[%emt 0:01:29]} 38. Rb1 {[%emt 0:03:16]} Qc5 {[%emt 0:00:06]} 39. Rh1 {[%emt 0:00:25]} Rd8 {[%emt 0:00:06]} 40. Qa2 {[%emt 0:01:49]} e6 {[%emt 0:01:25]} 41. Rd1 {[%emt 0:32:23]} Qf5 {[%emt 0:31:33]} 42. Qb1 {[%emt 0:04:58]} Qg4 {[%emt 0:01:05]} 43. Qc2 {[%emt 0:00:28]} Qh5 {[%emt 0:01:12]} 44. Rh1 {[%emt 0:02:09]} Qc5 {[%emt 0:00:11]} 45. Qa2 {[%emt 0:00:38]} Qb4 {[%emt 0:04:48]} 46. Rb1 {[%emt 0:00:43]} Qc3 {[%emt 0:00:13]} 47. Qb3 {[%emt 0:01:16]} Qe5 {[%emt 0:00:08]} 48. Bf3 {[%emt 0:01:25]} Rc8 {[%emt 0:02:18]} 49. Bc6 {[%emt 0:01:48]} Rh8 {[%emt 0:00:29]} 50. Rh1 {[%emt 0:00:35]} Rxh1 {[%emt 0:00:25]} 51. Kxh1 {[%emt 0:00:02]} Qa1+ {[%emt 0:00:13]} 52. Kg2 {[%emt 0:00:14]} Bc3 {[%emt 0:00:14]} 53. Qc2 {[%emt 0:02:16]} Bb4 {[%emt 0:00:22]} 54. Bf3 {[%emt 0:00:45]} Bc5 {[%emt 0:00:26]} 55. Bc6 {[%emt 0:01:11]} Qe5 {[%emt 0:00:18]} 56. Bf3 {[%emt 0:00:20]} f5 {[%emt 0:01:02]} 57. Bc6 {[%emt 0:02:29]} g5 {[%emt 0:01:06]} 58. Bb7 {[%emt 0:00:22]} g4 {[%emt 0:00:31]} 59. Bc6 {[%emt 0:00:18]} Kf7 {[%emt 0:00:19]} 60. e4 {[%emt 0:00:00]} f4 {[%emt 0:00:00]} 61. gxf4 {[%emt 0:00:00]} Qxf4 {[%emt 0:00:00]} 62. e5 {[%emt 0:00:00]} Qh6 {[%emt 0:00:00]} 63. Qd3 {[%emt 0:00:00]} dxe5 {[%emt 0:00:00]} 64. Qd7+ {[%emt 0:00:00]} Be7 {[%emt 0:00:00]} 65. Qe8+ {[%emt 0:00:00]} ({Of course not} 65. c5 Qh3+ 66. Kg1 g3 67. fxg3 (67. Qe8+ $2 Kf6 $19) 67... Kf6 $17 (67... Qxg3+ 68. Kf1 $11)) 65... Kf6 {[%emt 0:00:00]} 66. Be4 {[%emt 0:00:00]} Bc5 {[%emt 0:00:00]} 67. Qd8+ {[%emt 0:00:00]} Kf7 {[%emt 0:00:00]} 68. Qc7+ {[%emt 0:00:00]} Kf6 {[%emt 0:00:00]} 69. Qd8+ {[%emt 0:00:00]} Kf7 {[%emt 0:00:00]} 70. Qc7+ {[%emt 0:00:00]} 1/2-1/2

[Event "Czech Extraliga 2023-24"]
[Site "Czech Republic"]
[Date "2024.02.10"]
[Round "7.4"]
[White "Stalmach, Richard"]
[Black "Ponizil, Cyril"]
[Result "1-0"]
[ECO "A41"]
[WhiteElo "2433"]
[BlackElo "2467"]
[Annotator "RC"]
[PlyCount "107"]
[EventDate "2023.10.14"]
[EventCountry "CZE"]
[SourceTitle "playchess.com"]
[Source "ChessBase"]
[SourceQuality "1"]
[TimeControl "40/5400+30:1800+30"]

1. d4 {[%emt 0:00:04]} d6 {[%emt 0:00:04]} 2. Nf3 {[%emt 0:00:31]} g6 {[%emt 0:00:08]} 3. c4 {[%emt 0:00:29]} Bg7 {[%emt 0:00:04]} 4. Nc3 {[%emt 0:00:50]} e5 {[%emt 0:00:06]} 5. g3 {[%emt 0:05:52]} Nc6 {[%emt 0:05:33]} 6. dxe5 {[%emt 0:05:57]} Nxe5 {[%emt 0:04:14]} 7. Nxe5 {[%emt 0:01:13]} Bxe5 {[%emt 0:00:05]} 8. Bg2 {[%emt 0:00:16]} Ne7 {[%emt 0:00:53]} 9. h4 {[%emt 0:02:44]} O-O {[%emt 0:13:49]} 10. h5 {[%emt 0:02:34]} c6 {[%emt 0:00:04]} 11. Bf4 {[%emt 0:10:05]} Nf5 {[%emt 0:08:11]} 12. Qd2 {[%emt 0:07:42]} Be6 {[%emt 0:02:39]} 13. g4 {[%emt 0:08:11]} Nh4 {[%emt 0:04:54]} 14. Be4 {[%emt 0:01:03]} Bxf4 {[%emt 0:02:54]} 15. Qxf4 {[%emt 0:00:53]} g5 {[%emt 0:00:25]} 16. Qd2 {[%emt 0:04:40]} Qf6 {[%emt 0:01:06]} 17. O-O-O {[%emt 0:10:40]} h6 {[%emt 0:00:07]} 18. f4 {[%emt 0:00:44]} Bxc4 {[%emt 0:02:54]} 19. fxg5 {[%emt 0:10:34]} hxg5 {[%emt 0:00:21]} 20. Rdf1 {[%emt 0:04:31]} Qe7 {[%emt 0:06:50]} 21. Bc2 {[%emt 0:03:14]} d5 {[%emt 0:01:05]} 22. b3 {[%emt 0:01:10]} Ba6 {[%emt 0:00:15]} 23. Rf2 {[%emt 0:02:34]} Rae8 {[%emt 0:04:48]} 24. e4 {[%emt 0:00:56]} d4 {[%emt 0:07:09]} 25. Qxd4 {[%emt 0:01:01]} Qe5 {[%emt 0:00:02]} 26. Qe3 {[%emt 0:01:00]} f6 {[%emt 0:00:07]} 27. Rd1 {[%emt 0:00:48]} Re7 {[%emt 0:00:51]} 28. Kb1 {[%emt 0:02:28]} b6 {[%emt 0:00:22]} 29. Ne2 {[%emt 0:02:18]} Bc8 {[%emt 0:01:50]} 30. Nd4 {[%emt 0:02:27]} Bd7 {[%emt 0:00:06]} 31. Qe2 {[%emt 0:01:57]} c5 {[%emt 0:04:22]} 32. Nb5 {[%emt 0:00:56]} Qg3 {[%emt 0:02:58]} 33. Rdf1 {[%emt 0:03:12]} Bxg4 {[%emt 0:00:53]} 34. Qd2 {[%emt 0:00:13]} Rd7 {[%emt 0:04:36]} 35. Rxf6 {[%emt 0:00:55]} Rxf6 {[%emt 0:07:52]} 36. Qxg5+ {[%emt 0:00:02]} Rg7 {[%emt 0:01:09]} 37. Qxf6 {[%emt 0:00:13]} Bxh5 {[%emt 0:00:04]} 38. Qd8+ {[%emt 0:01:06]} Kh7 {[%emt 0:00:05]} 39. Rh1 {[%emt 0:00:07]} Rg4 {[%emt 0:03:53]} 40. Qe7+ {[%emt 0:03:06]} Kg8 {[%emt 0:04:16]} 41. Rd1 {[%emt 0:09:49]} Rg7 {[%emt 0:00:51]} 42. Qd8+ {[%emt 0:00:09]} Kh7 {[%emt 0:00:57]} 43. Rh1 {[%emt 0:00:05]} Rg5 {[%emt 0:02:47]} 44. Nc7 {[%emt 0:03:21]} Qe3 {[%emt 0:17:51]} 45. e5+ {[%emt 0:08:44]} Ng6 {[%emt 0:02:27]} 46. Qd7+ {[%emt 0:02:43]} Kh6 {[%emt 0:00:15]} 47. Ne6 {[%emt 0:01:20]} Qxe5 {[%emt 0:02:44]} 48. Nxg5 {[%emt 0:03:09]} Kxg5 {[%emt 0:02:01]} 49. Qh7 {[%emt 0:03:16]} Nf4 {[%emt 0:00:42]} 50. Rg1+ {[%emt 0:00:07]} Kf6 {[%emt 0:04:24]} 51. Qxa7 {[%emt 0:00:12]} Ne6 {[%emt 0:00:32]} 52. Rf1+ {[%emt 0:00:22]} Nf4 {[%emt 0:00:09]} 53. Qxb6+ {[%emt 0:00:20]} Kf7 {[%emt 0:02:55]} 54. Qh6 {[%emt 0:00:16]} 1-0

[Event "Czech Extraliga 2023-24"]
[Site "Czech Republic"]
[Date "2024.02.10"]
[Round "7.4"]
[White "Jurcik, Marian"]
[Black "Volosin, Leon"]
[Result "1/2-1/2"]
[ECO "D36"]
[WhiteElo "2404"]
[BlackElo "2400"]
[Annotator "RC"]
[PlyCount "136"]
[EventDate "2023.10.14"]
[EventCountry "CZE"]
[SourceTitle "playchess.com"]
[Source "ChessBase"]
[SourceQuality "1"]
[TimeControl "40/5400+30:1800+30"]

1. c4 {[%emt 0:00:39]} e6 {[%emt 0:02:19]} 2. Nc3 {[%emt 0:00:32]} d5 {[%emt 0:00:06]} 3. d4 {[%emt 0:00:24]} Nf6 {[%emt 0:02:44]} 4. cxd5 {[%emt 0:01:02]} exd5 {[%emt 0:00:28]} 5. Bg5 {[%emt 0:00:13]} Be7 {[%emt 0:04:43]} 6. e3 {[%emt 0:00:35]} O-O {[%emt 0:05:04]} 7. Bd3 {[%emt 0:00:28]} c6 {[%emt 0:01:58]} 8. Qc2 {[%emt 0:00:35]} h6 {[%emt 0:00:19]} 9. Bf4 {[%emt 0:07:50]} Bd6 {[%emt 0:07:48]} 10. Nge2 {[%emt 0:03:03]} Re8 {[%emt 0:12:34]} 11. h3 {[%emt 0:06:50]} a5 {[%emt 0:06:59]} 12. g4 {[%emt 0:13:15]} Bxf4 {[%emt 0:08:33]} 13. Nxf4 {[%emt 0:02:31]} Na6 {[%emt 0:04:44]} 14. Bxa6 {[%emt 0:22:24]} Rxa6 {[%emt 0:01:22]} 15. O-O-O {[%emt 0:00:17]} Ne4 {[%emt 0:15:47]} 16. Nxe4 {[%emt 0:02:07]} dxe4 {[%emt 0:01:07]} 17. Kb1 {[%emt 0:01:33]} Be6 {[%emt 0:00:49]} 18. Rdg1 {[%emt 0:04:49]} a4 {[%emt 0:04:36]} 19. h4 {[%emt 0:02:33]} g6 {[%emt 0:02:55]} 20. g5 {[%emt 0:03:01]} h5 {[%emt 0:00:33]} 21. Rc1 {[%emt 0:01:04]} Ra5 {[%emt 0:01:40]} 22. Qc3 {[%emt 0:02:43]} Rb5 {[%emt 0:11:17]} 23. Qa3 {[%emt 0:01:51]} Qa5 {[%emt 0:00:53]} 24. Rc3 {[%emt 0:04:50]} Rf5 {[%emt 0:00:37]} 25. Rhc1 {[%emt 0:03:01]} Rxf4 {[%emt 0:01:58]} 26. exf4 {[%emt 0:04:16]} Qf5 {[%emt 0:00:29]} 27. Rc5 {[%emt 0:01:18]} Qxf4 {[%emt 0:00:50]} 28. Qe3 {[%emt 0:02:21]} Qxe3 {[%emt 0:00:29]} 29. fxe3 {[%emt 0:00:10]} Bd5 {[%emt 0:00:02]} 30. Ra5 {[%emt 0:02:38]} b5 {[%emt 0:00:30]} 31. Ra7 {[%emt 0:00:44]} Kf8 {[%emt 0:00:26]} 32. Rf1 {[%emt 0:00:42]} Re7 {[%emt 0:00:37]} 33. Ra8+ {[%emt 0:03:38]} Re8 {[%emt 0:00:42]} 34. Rxe8+ {[%emt 0:01:26]} Kxe8 {[%emt 0:00:00]} 35. Rf4 {[%emt 0:00:33]} Ke7 {[%emt 0:00:42]} 36. Kc2 {[%emt 0:00:48]} Bxa2 {[%emt 0:00:55]} 37. Rxe4+ {[%emt 0:00:11]} Kd6 {[%emt 0:00:01]} 38. Re5 {[%emt 0:01:45]} b4 {[%emt 0:00:41]} 39. Ra5 {[%emt 0:00:23]} Bb3+ {[%emt 0:00:07]} 40. Kd3 {[%emt 0:00:52]} Kc7 {[%emt 0:00:16]} 41. e4 {[%emt 0:03:22]} Kb6 {[%emt 0:01:52]} 42. Ra8 {[%emt 0:17:22]} Kb7 {[%emt 0:03:02]} 43. Ra5 {[%emt 0:00:05]} Kb6 {[%emt 0:00:04]} 44. Rc5 {[%emt 0:02:39]} Be6 {[%emt 0:02:34]} 45. Kd2 {[%emt 0:05:54]} Bb3 {[%emt 0:03:33]} 46. Kc1 {[%emt 0:02:15]} Be6 {[%emt 0:01:39]} 47. Re5 {[%emt 0:01:29]} Bb3 {[%emt 0:02:56]} 48. Rc5 {[%emt 0:00:24]} Be6 {[%emt 0:00:24]} 49. Re5 {[%emt 0:00:02]} Bb3 {[%emt 0:00:08]} 50. d5 {[%emt 0:01:14]} cxd5 {[%emt 0:17:51]} 51. exd5 {[%emt 0:00:06]} a3 {[%emt 0:00:04]} 52. bxa3 {[%emt 0:00:31]} bxa3 {[%emt 0:00:01]} 53. Re3 {[%emt 0:00:57]} Bxd5 {[%emt 0:00:11]} 54. Rxa3 {[%emt 0:00:06]} Kc5 {[%emt 0:00:25]} 55. Kd2 {[%emt 0:00:35]} Kd4 {[%emt 0:01:39]} 56. Ra4+ {[%emt 0:00:23]} Ke5 {[%emt 0:00:03]} 57. Ke3 {[%emt 0:00:09]} f5 {[%emt 0:01:24]} 58. gxf6 {[%emt 0:01:23]} Kxf6 {[%emt 0:00:05]} 59. Kf4 {[%emt 0:00:20]} Be6 {[%emt 0:00:28]} 60. Ra6 {[%emt 0:00:24]} Kf7 {[%emt 0:00:08]} 61. Ke5 {[%emt 0:00:32]} Bf5 {[%emt 0:00:12]} 62. Ra7+ {[%emt 0:00:23]} Kg8 {[%emt 0:00:12]} 63. Kf6 {[%emt 0:00:19]} Kh8 {[%emt 0:00:50]} 64. Kg5 {[%emt 0:01:04]} Kg8 {[%emt 0:00:12]} 65. Kh6 {[%emt 0:00:28]} Kf8 {[%emt 0:00:16]} 66. Rg7 {[%emt 0:00:21]} Be4 {[%emt 0:00:12]} 67. Rxg6 {[%emt 0:00:33]} Bxg6 {[%emt 0:00:08]} 68. Kxg6 {[%emt 0:00:15]} Kg8 {[%emt 0:05:17]} 1/2-1/2

[Event "Czech Extraliga 2023-24"]
[Site "Czech Republic"]
[Date "2024.02.10"]
[Round "7.4"]
[White "Shagbazyan, Taron"]
[Black "Finek, Vaclav"]
[Result "1/2-1/2"]
[ECO "D45"]
[WhiteElo "2403"]
[BlackElo "2416"]
[Annotator "TA"]
[PlyCount "85"]
[EventDate "2023.10.14"]
[EventCountry "CZE"]
[SourceTitle "playchess.com"]
[Source "ChessBase"]
[SourceQuality "1"]
[TimeControl "40/5400+30:1800+30"]

{[%evp 19,85,0,6,0,14,9,10,0,0,-12,0,-4,0,0,0,0,0,0,6,-23,-22,-25,-8,-20,-6,-39,0,-16,-6,-14,0,0,0,-18,0,-21,0,0,0,0,0,-13,-14,-14,-14,-8,0,-17,-8,-41,-39,-40,-10,-13,-13,-58,-28,-28,-1,-1,-1,-1,-6,-8,0,0,0,0]} 1. d4 d5 2. c4 c6 3. Nf3 Nf6 4. Nc3 e6 5. e3 Nbd7 6. Qc2 Bd6 7. b3 O-O 8. Be2 b6 9. O-O Bb7 10. Bb2 Qe7 11. Rac1 Rac8 12. Rfd1 Rfd8 13. Qb1 a6 14. a4 h6 15. cxd5 exd5 16. Bd3 c5 17. Bf5 Rc7 18. Bh3 c4 19. Nd2 cxb3 20. Nxb3 Nf8 21. Nd2 Ne6 22. Nf3 Ne4 23. Nxe4 dxe4 24. Ne5 Bxe5 (24... Bd5 {with more complications.} 25. Bf5 Rxc1 26. Rxc1 Qb7) 25. dxe5 Rxc1 26. Qxc1 Rxd1+ 27. Qxd1 Bc6 28. Bxe6 Qxe6 $11 {[%mdl 4096] Endgame. KQB-KQB} 29. h3 Qd7 30. Qxd7 Bxd7 {KB-KB} 31. Bd4 Bxa4 32. Bxb6 Bd7 33. Kf1 Bb5+ 34. Ke1 g5 35. Bd8 Kh7 36. h4 gxh4 37. e6 h3 (37... fxe6 {simplifies} 38. Bxh4 a5 39. Be7 Kg6) 38. exf7 Kg7 (38... hxg2 {seems wilder.} 39. f8=Q g1=Q+ 40. Kd2 Qg7) 39. gxh3 {The position is equal.} Kxf7 40. Kd2 Ke6 41. Kc3 Kd5 42. Kb4 h5 43. h4 {Weighted Error Value: White=0.08 (flawless) /Black=0.09 (flawless) .  Inaccurate:     	White=4     	Black=4      OK:         	White=9     	Black=7      Best:        	White=3     	---} 1/2-1/2

[Event "Czech Extraliga 2023-24"]
[Site "Czech Republic"]
[Date "2024.02.10"]
[Round "7.5"]
[White "NOV8 Shirov Alexei GM"]
[Black "LIN8 Smolik Jachym FM"]
[Result "1/2-1/2"]
[ECO "B12"]
[WhiteElo "2655"]
[BlackElo "2339"]
[Annotator "TA"]
[PlyCount "102"]
[EventDate "2023.10.14"]
[EventCountry "CZE"]
[SourceTitle "playchess.com"]
[Source "ChessBase"]
[SourceQuality "1"]
[TimeControl "40/5400+30:1800+30"]

{[%evp 20,102,16,0,0,0,0,0,0,0,0,0,0,0,16,20,8,19,19,31,25,32,21,0,0,0,0,0,0,0,0,0,0,0,0,0,0,0,19,16,15,9,0,0,0,0,0,0,53,68,100,87,54,46,46,52,80,44,39,0,0,0,0,0,0,0,0,0,0,0,0,0,0,0,0,0,0,0,0,0,0,0,0,0,0]} 1. e4 {[%emt 0:00:03]} c6 {[%emt 0:00:02]} 2. d4 {[%emt 0:00:08]} d5 {[%emt 0:00:04]} 3. e5 {[%emt 0:00:05]} Bf5 {[%emt 0:00:07]} 4. h4 {[%emt 0:00:04]} h5 {[%emt 0:00:06]} 5. Bd3 {[%emt 0:00:04]} Bxd3 {[%emt 0:00:07]} 6. Qxd3 {[%emt 0:00:04] B12: Caro-Kann: Advance Variation.} Qa5+ {[%emt 0:00:09]} 7. Nd2 {[%emt 0:00:07]} e6 {[%emt 0:00:10]} 8. Ngf3 {[%emt 0:00:27]} Nh6 {[%emt 0:00:11]} 9. O-O {[%emt 0:00:25]} Nf5 {[%emt 0:00:12]} 10. Nb3 {[%emt 0:00:05]} Qb5 {[%emt 0:00:10]} 11. Qd1 {[%emt 0:03:14]} c5 {[%emt 0:00:08]} 12. a4 {[%emt 0:00:33]} Qb6 {[%emt 0:00:41]} 13. dxc5 {[%emt 0:01:29]} Bxc5 {[%emt 0:00:10]} 14. a5 {[%emt 0:00:03]} Qb5 {[%emt 0:00:44]} 15. Nxc5 {[%emt 0:00:24]} Qxc5 {[%emt 0:00:02]} 16. b3 {[%emt 0:00:11]} Nd7 $146 {[%emt 0:03:52]} ({Predecessor:} 16... Nc6 17. Ra4 O-O-O 18. Bg5 Rd7 19. a6 b5 20. Rf4 Kb8 21. Qd3 Rc8 22. Rxf5 exf5 23. Qxf5 {1-0 Shirov,A (2655)-Abdrlauf,E (2568) FIDE Grand Swiss 2023 (5)}) 17. c4 {[%emt 0:16:55]} dxc4 {[%emt 0:04:35]} 18. bxc4 {[%emt 0:01:08]} Rc8 {[%emt 0:14:59]} 19. a6 {[%emt 0:06:59]} b6 {[%emt 0:06:28]} 20. Ba3 {[%emt 0:01:26]} Qc7 {[%emt 0:07:00]} 21. Qa4 {[%emt 0:22:19]} Qc6 $1 {[%emt 0:00:16]} 22. Qb5 {[%emt 0:00:24]} Rh6 {[%emt 0:11:40]} (22... Nc5 $6 23. Rfd1 $14) 23. Rfd1 {[%emt 0:07:08]} Rg6 {[%emt 0:02:45]} 24. Rd3 {[%emt 0:00:53]} Rg4 {[%emt 0:06:37]} 25. Rad1 {[%emt 0:06:23]} Qxb5 $1 {[%emt 0:00:07]} 26. cxb5 {[%emt 0:00:04]} Rc7 {[%emt 0:00:04]} 27. Ng5 {[%emt 0:09:36]} (27. g3 {simplifies} Rgc4 28. Kg2 Rc3 29. Bb4) 27... Nxh4 {[%emt 0:04:37]} (27... Nxe5 28. Rd8#) 28. Nxf7 {[%emt 0:00:07]} Rxg2+ {[%emt 0:14:37]} 29. Kf1 {[%emt 0:00:09]} Rh2 $1 {[%emt 0:01:23]} 30. Nd6+ {[%emt 0:09:58]} Kd8 $1 {[%emt 0:00:03]} 31. Kg1 {[%emt 0:05:41]} Rg2+ {[%emt 0:00:02]} 32. Kh1 {[%emt 0:00:42]} (32. Kf1 $5 Rh2 $8 (32... Rc2 $2 33. Ne4 $18) 33. Nf7+ Ke8 34. Nd6+ Kd8 $16) 32... Rxf2 {[%emt 0:00:44]} (32... Nxe5 $2 33. Nf7+ Ke8 34. Nxe5 $18) 33. Ne4 {[%emt 0:00:05]} Ra2 {[%emt 0:11:37]} (33... Re2 $11 34. Ng3 Rf2 (34... Rxe5 $2 35. Bd6 $16)) 34. Ng5 $14 {[%emt 0:02:38]} Ke8 {[%emt 0:00:48]} 35. Nxe6 {[%emt 0:01:42]} Rcc2 {[%emt 0:00:02]} 36. Nxg7+ {[%emt 0:05:20]} Kf7 {[%emt 0:00:01]} 37. e6+ $1 {[%emt 0:00:11]} (37. Rxd7+ $2 {too greedy.} Kg8 $19) 37... Kg8 $1 {[%emt 0:00:21]} 38. Bd6 {[%emt 0:01:41]} (38. exd7 $2 {gets mated.} Rh2+ (38... Kxg7 39. Rg3+ Kf7 40. d8=Q Rh2+ 41. Kg1 Rhg2+ 42. Rxg2 Rxg2+ 43. Kh1) 39. Kg1 Rag2+ 40. Kf1 Rh1#) 38... Nf6 {[%emt 0:01:27]} 39. Nxh5 {[%emt 0:00:33]} ({Not} 39. Rg1 $2 Ng4 40. Rgd1 Nf2+ (40... Kxg7 $2 41. Bg3 $19) 41. Kh2 Nxd1+ $19 (41... Nxd3+ $2 42. Kh3 $19)) 39... Ne4 {[%emt 0:02:09]} 40. Bg3 {[%emt 0:00:18]} Nf5 {[%emt 0:01:40]} 41. e7 {[%emt 0:05:09]} Nexg3+ {[%emt 0:03:24]} 42. Nxg3 {[%emt 0:08:06]} Rh2+ {[%emt 0:00:36]} 43. Kg1 {[%emt 0:00:05]} Rhg2+ {[%emt 0:00:09]} 44. Kf1 {[%emt 0:01:50]} Rgf2+ {[%emt 0:00:05]} 45. Ke1 {[%emt 0:01:25]} Kf7 {[%emt 0:11:12]} 46. e8=Q+ {[%emt 0:10:33]} Kxe8 {[%emt 0:00:02]} 47. Rd8+ {[%emt 0:00:10]} Kf7 {[%emt 0:00:15]} 48. R1d7+ {[%emt 0:00:05]} Ke6 {[%emt 0:07:14]} 49. Nxf5 {[%emt 0:00:18]} Rxf5 {[%emt 0:00:46]} 50. Rd6+ {[%emt 0:00:25]} Ke7 {[%emt 0:04:55]} 51. R8d7+ {[%emt 0:00:07]} Ke8 {[%emt 0:00:01]} 1/2-1/2

[Event "Czech Extraliga 2023-24"]
[Site "Czech Republic"]
[Date "2024.02.10"]
[Round "7.5"]
[White "Vykouk, Jan"]
[Black "Polak, Tomas"]
[Result "0-1"]
[ECO "B01"]
[WhiteElo "2493"]
[BlackElo "2525"]
[Annotator "RC"]
[PlyCount "144"]
[EventDate "2023.10.14"]
[EventCountry "CZE"]
[SourceTitle "playchess.com"]
[Source "ChessBase"]
[SourceQuality "1"]
[TimeControl "40/5400+30:1800+30"]

1. e4 {[%emt 0:00:05]} d5 {[%emt 0:00:34]} 2. exd5 {[%emt 0:00:06]} Qxd5 {[%emt 0:00:05]} 3. Nf3 {[%emt 0:01:07]} Bg4 {[%emt 0:02:26]} 4. Nc3 {[%emt 0:02:51]} Qe6+ {[%emt 0:05:50]} 5. Qe2 {[%emt 0:11:28]} Qxe2+ {[%emt 0:00:33]} 6. Bxe2 {[%emt 0:00:04]} Nc6 {[%emt 0:07:02]} 7. Nd5 {[%emt 0:00:45]} O-O-O {[%emt 0:06:39]} 8. Ne3 {[%emt 0:00:03]} Bd7 {[%emt 0:07:49]} 9. d4 {[%emt 0:01:44]} e6 {[%emt 0:02:04]} 10. c3 {[%emt 0:00:41]} Nf6 {[%emt 0:01:30]} 11. O-O {[%emt 0:00:36]} Be7 {[%emt 0:04:19]} 12. b4 {[%emt 0:06:19]} Nd5 {[%emt 0:05:17]} 13. Bb2 {[%emt 0:00:08]} Nf4 {[%emt 0:10:47]} 14. Bc4 {[%emt 0:00:31]} Be8 {[%emt 0:00:51]} 15. g3 {[%emt 0:03:59]} Nd5 {[%emt 0:00:55]} 16. Rfe1 {[%emt 0:03:00]} Nxe3 {[%emt 0:05:03]} 17. fxe3 {[%emt 0:05:04]} Bd6 {[%emt 0:05:17]} 18. e4 {[%emt 0:06:25]} e5 {[%emt 0:02:46]} 19. d5 {[%emt 0:01:08]} Ne7 {[%emt 0:01:50]} 20. Bb3 {[%emt 0:00:23]} f6 {[%emt 0:03:45]} 21. a3 {[%emt 0:00:30]} Kb8 {[%emt 0:01:50]} 22. c4 {[%emt 0:04:29]} c5 {[%emt 0:00:32]} 23. Bc3 {[%emt 0:00:39]} Rc8 {[%emt 0:03:30]} 24. Kg2 {[%emt 0:00:37]} Bd7 {[%emt 0:02:22]} 25. Re3 {[%emt 0:02:46]} Ka8 {[%emt 0:01:52]} 26. Bd2 {[%emt 0:10:34]} Rc7 {[%emt 0:02:04]} 27. Ne1 {[%emt 0:00:56]} h5 {[%emt 0:02:13]} 28. Nd3 {[%emt 0:00:45]} b6 {[%emt 0:00:44]} 29. Ree1 {[%emt 0:03:36]} Rb8 {[%emt 0:07:35]} 30. a4 {[%emt 0:03:20]} cxb4 {[%emt 0:07:26]} 31. a5 {[%emt 0:00:51]} Kb7 {[%emt 0:00:00]} 32. axb6 {[%emt 0:13:24]} axb6 {[%emt 0:00:00]} 33. Bxb4 {[%emt 0:00:14]} Nc8 {[%emt 0:00:00]} 34. Bd2 {[%emt 0:03:23]} Ra8 {[%emt 0:00:00]} 35. Rab1 {[%emt 0:00:16]} Ba4 {[%emt 0:00:00]} 36. Nc1 {[%emt 0:07:38]} Kb8 {[%emt 0:00:11]} 37. Ba2 {[%emt 0:03:43]} Bc5 {[%emt 0:00:27]} 38. Bb4 {[%emt 0:01:26]} Bd7 {[%emt 0:00:50]} 39. Re2 {[%emt 0:02:04]} Bxb4 {[%emt 0:01:45]} 40. Rxb4 {[%emt 0:00:05]} Ra4 {[%emt 0:00:25]} 41. Rxa4 {[%emt 0:03:18]} Bxa4 {[%emt 0:00:10]} 42. Rb2 {[%emt 0:00:09]} Ka7 {[%emt 0:06:26]} 43. Ne2 {[%emt 0:15:29]} Nd6 {[%emt 0:01:18]} 44. Kf3 {[%emt 0:07:38]} Bd1 {[%emt 0:04:11]} 45. Rd2 {[%emt 0:01:18]} Bxe2+ {[%emt 0:00:42]} 46. Rxe2 {[%emt 0:00:04]} Kb7 {[%emt 0:04:32]} 47. Rc2 {[%emt 0:00:28]} Rc5 {[%emt 0:00:52]} 48. Bb3 {[%emt 0:03:50]} Ra5 {[%emt 0:00:55]} 49. Re2 {[%emt 0:00:12]} Ra3 {[%emt 0:02:16]} 50. Re3 {[%emt 0:00:01]} Ka6 {[%emt 0:04:23]} 51. g4 {[%emt 0:01:23]} hxg4+ {[%emt 0:00:53]} 52. Kxg4 {[%emt 0:00:05]} Ka5 {[%emt 0:01:53]} 53. Rd3 {[%emt 0:03:27]} Kb4 {[%emt 0:01:39]} 54. Bc2 {[%emt 0:00:03]} Rxd3 {[%emt 0:02:44]} 55. Bxd3 {[%emt 0:00:05]} Kc3 {[%emt 0:00:10]} 56. Bf1 {[%emt 0:00:06]} g6 {[%emt 0:00:30]} 57. h4 {[%emt 0:00:31]} Nxe4 {[%emt 0:00:47]} 58. h5 {[%emt 0:00:17]} f5+ {[%emt 0:00:09]} 59. Kh4 {[%emt 0:00:04]} gxh5 {[%emt 0:00:14]} 60. Kxh5 {[%emt 0:00:20]} Nd6 {[%emt 0:02:50]} 61. Kg5 {[%emt 0:00:48]} f4 {[%emt 0:01:33]} 62. Kg4 {[%emt 0:00:05]} Kd4 {[%emt 0:00:43]} 63. Kf3 {[%emt 0:00:01]} Kc5 {[%emt 0:00:23]} 64. Kg4 {[%emt 0:00:13]} Nb7 {[%emt 0:00:46]} 65. Kf5 {[%emt 0:00:34]} Kd6 {[%emt 0:00:08]} 66. Ke4 {[%emt 0:01:17]} Nc5+ {[%emt 0:00:13]} 67. Kf5 {[%emt 0:00:11]} Nb3 {[%emt 0:00:18]} 68. Kg4 {[%emt 0:01:23]} Nd4 {[%emt 0:00:53]} 69. Bd3 {[%emt 0:00:23]} Nb3 {[%emt 0:00:49]} 70. Bf1 {[%emt 0:01:14]} Nd2 {[%emt 0:00:31]} 71. Be2 {[%emt 0:00:35]} Ke7 {[%emt 0:00:30]} 72. Kf5 {[%emt 0:02:42]} f3 {[%emt 0:00:19]} 0-1